[Event "Titled Tuesday Blitz December 14 2021"]
[White "Sviridov, Valery"]
[Black "Timofeev, Artyom"]
[WhiteFideId "4120680"]
[BlackFideId "4140419"]
[WhiteElo "2454"]
[BlackElo "2628"]
[Result "1-0"]
[Round "06"]
[TimeControl "180+1"]
[Date "2021.12.14"]
[WhiteClock "0:00:10"]
[BlackClock "0:00:07"]

1. Nf3 {[%clk 0:03:00]}  c5 {[%clk 0:02:59]} 2. c4 {[%clk 0:02:59]}  Nf6 {[%clk 0:02:58]} 3. g3 {[%clk 0:02:59]}  Nc6 {[%clk 0:02:56]} 4. Bg2 {[%clk 0:02:58]}  e5 {[%clk 0:02:55]} 5. Nc3 {[%clk 0:02:58]}  Be7 {[%clk 0:02:54]} 6. O-O {[%clk 0:02:58]}  O-O {[%clk 0:02:54]} 7. Ne1 {[%clk 0:02:58]}  d6 {[%clk 0:02:49]} 8. Nc2 {[%clk 0:02:58]}  Be6 {[%clk 0:02:49]} 9. Ne3 {[%clk 0:02:58]}  Qd7 {[%clk 0:02:49]} 10. a3 {[%clk 0:02:57]}  Nd4 {[%clk 0:02:35]} 11. b4 {[%clk 0:02:54]}  Rac8 {[%clk 0:02:35]} 12. bxc5 {[%clk 0:02:49]}  dxc5 {[%clk 0:02:35]} 13. d3 {[%clk 0:02:49]}  Bh3 {[%clk 0:02:29]} 14. a4 {[%clk 0:02:29]}  Bxg2 {[%clk 0:02:29]} 15. Kxg2 {[%clk 0:02:29]}  Bd8 {[%clk 0:02:25]} 16. Ned5 {[%clk 0:02:26]}  Nxd5 {[%clk 0:02:10]} 17. Nxd5 {[%clk 0:02:27]}  Nc6 {[%clk 0:02:07]} 18. Bb2 {[%clk 0:02:09]}  Re8 {[%clk 0:02:06]} 19. e4 {[%clk 0:02:07]}  Nb4 {[%clk 0:02:01]} 20. a5 {[%clk 0:02:04]}  Nxd5 {[%clk 0:02:00]} 21. exd5 {[%clk 0:02:03]}  Bc7 {[%clk 0:01:57]} 22. Re1 {[%clk 0:01:57]}  a6 {[%clk 0:01:52]} 23. Bc3 {[%clk 0:01:58]}  Bd6 {[%clk 0:01:51]} 24. Rb1 {[%clk 0:01:58]}  Re7 {[%clk 0:01:49]} 25. Qf3 {[%clk 0:01:36]}  Rce8 {[%clk 0:01:47]} 26. g4 {[%clk 0:01:36]}  g6 {[%clk 0:01:25]} 27. Kh1 {[%clk 0:01:26]}  Bb8 {[%clk 0:01:18]} 28. Rb6 {[%clk 0:01:18]}  Ba7 {[%clk 0:01:14]} 29. Rb2 {[%clk 0:00:57]}  Bb8 {[%clk 0:01:13]} 30. h3 {[%clk 0:00:52]}  Qc7 {[%clk 0:01:03]} 31. Qf6 {[%clk 0:00:51]}  Qd6 {[%clk 0:00:52]} 32. Qxd6 {[%clk 0:00:49]}  Bxd6 {[%clk 0:00:52]} 33. Rbe2 {[%clk 0:00:48]}  f5 {[%clk 0:00:49]} 34. f3 {[%clk 0:00:48]}  Kf7 {[%clk 0:00:49]} 35. Kg2 {[%clk 0:00:48]}  Bc7 {[%clk 0:00:47]} 36. Rb1 {[%clk 0:00:47]}  Rb8 {[%clk 0:00:47]} 37. Reb2 {[%clk 0:00:47]}  Bd8 {[%clk 0:00:38]} 38. d6 {[%clk 0:00:44]}  Rd7 {[%clk 0:00:38]} 39. Bxe5 {[%clk 0:00:44]}  Bf6 {[%clk 0:00:34]} 40. f4 {[%clk 0:00:43]}  fxg4 {[%clk 0:00:32]} 41. hxg4 {[%clk 0:00:43]}  g5 {[%clk 0:00:32]} 42. Kf3 {[%clk 0:00:35]}  gxf4 {[%clk 0:00:32]} 43. Kxf4 {[%clk 0:00:36]}  Ke6 {[%clk 0:00:32]} 44. Bxf6 {[%clk 0:00:36]}  Kxf6 {[%clk 0:00:32]} 45. Rb6 {[%clk 0:00:35]}  h6 {[%clk 0:00:31]} 46. Rxa6 {[%clk 0:00:34]}  Rf8 {[%clk 0:00:31]} 47. Rab6 {[%clk 0:00:32]}  Ke6+ {[%clk 0:00:32]} 48. Kg3 {[%clk 0:00:32]}  Ra8 {[%clk 0:00:30]} 49. R1b5 {[%clk 0:00:27]}  Rxd6 {[%clk 0:00:28]} 50. Rxc5 {[%clk 0:00:24]}  Rxb6 {[%clk 0:00:23]} 51. axb6 {[%clk 0:00:25]}  Ra6 {[%clk 0:00:22]} 52. Rh5 {[%clk 0:00:23]}  Ra3 {[%clk 0:00:22]} 53. Rxh6+ {[%clk 0:00:24]}  Ke5 {[%clk 0:00:21]} 54. Rh7 {[%clk 0:00:22]}  Rxd3+ {[%clk 0:00:21]} 55. Kh4 {[%clk 0:00:22]}  Rc3 {[%clk 0:00:19]} 56. Rc7 {[%clk 0:00:22]}  Kf4 {[%clk 0:00:18]} 57. c5 {[%clk 0:00:21]}  Rc1 {[%clk 0:00:18]} 58. Rf7+ {[%clk 0:00:21]}  Ke5 {[%clk 0:00:18]} 59. Rxb7 {[%clk 0:00:20]}  Rxc5 {[%clk 0:00:18]} 60. Rc7 {[%clk 0:00:20]}  Rb5 {[%clk 0:00:18]} 61. b7 {[%clk 0:00:21]}  Kd6 {[%clk 0:00:18]} 62. Rh7 {[%clk 0:00:21]}  Ke6 {[%clk 0:00:18]} 63. g5 {[%clk 0:00:20]}  Rb1 {[%clk 0:00:13]} 64. Kh5 {[%clk 0:00:19]}  Kf5 {[%clk 0:00:12]} 65. Rf7+ {[%clk 0:00:19]}  Ke6 {[%clk 0:00:12]} 66. Kg6 {[%clk 0:00:15]}  Rb5 {[%clk 0:00:07]} 67. Rc7 {[%clk 0:00:14]}  Kd6 {[%clk 0:00:07]} 68. Rh7 {[%clk 0:00:14]}  Ke6 {[%clk 0:00:07]} 69. Rc7 {[%clk 0:00:12]}  Kd6 {[%clk 0:00:07]} 70. Rc2 {[%clk 0:00:08]}  Rxb7 {[%clk 0:00:07]} 71. Re2 {[%clk 0:00:09]}  Rb5 {[%clk 0:00:06]} 72. Kh6 {[%clk 0:00:09]}  Re5 {[%clk 0:00:05]} 73. Rxe5 {[%clk 0:00:08]}  Kxe5 {[%clk 0:00:06]} 74. g6 {[%clk 0:00:09]}  Kf6 {[%clk 0:00:06]} 75. g7 {[%clk 0:00:10]}  Kf7 {[%clk 0:00:07]} 76. Kh7 {[%clk 0:00:10]} 1-0


[Site "https://www.chess.com"]

[Event "Titled Tuesday Blitz December 14 2021"]
[White "Sychev, Klementy"]
[Black "Aggelis, Nikolaos"]
[WhiteFideId "4114060"]
[BlackFideId "4213220"]
[WhiteElo "2615"]
[BlackElo "2154"]
[Result "1/2-1/2"]
[Round "06"]
[TimeControl "180+1"]
[Date "2021.12.14"]
[WhiteClock "0:00:57"]
[BlackClock "0:01:20"]

1. e4 {[%clk 0:03:00]}  c5 {[%clk 0:02:58]} 2. Ne2 {[%clk 0:02:56]}  Nc6 {[%clk 0:02:53]} 3. Nbc3 {[%clk 0:02:53]}  g6 {[%clk 0:02:53]} 4. d4 {[%clk 0:02:53]}  cxd4 {[%clk 0:02:51]} 5. Nxd4 {[%clk 0:02:53]}  Bg7 {[%clk 0:02:52]} 6. Be3 {[%clk 0:02:54]}  Nf6 {[%clk 0:02:52]} 7. Nxc6 {[%clk 0:02:54]}  dxc6 {[%clk 0:02:46]} 8. Qxd8+ {[%clk 0:02:53]}  Kxd8 {[%clk 0:02:47]} 9. f3 {[%clk 0:02:51]}  e5 {[%clk 0:02:45]} 10. Bc4 {[%clk 0:02:49]}  Be6 {[%clk 0:02:43]} 11. Bxe6 {[%clk 0:02:47]}  fxe6 {[%clk 0:02:44]} 12. Ke2 {[%clk 0:02:43]}  Kc7 {[%clk 0:02:38]} 13. Nb1 {[%clk 0:02:42]}  Nd7 {[%clk 0:02:36]} 14. Nd2 {[%clk 0:02:41]}  Bf8 {[%clk 0:02:34]} 15. a4 {[%clk 0:02:27]}  Bc5 {[%clk 0:02:33]} 16. Nc4 {[%clk 0:02:27]}  Bxe3 {[%clk 0:02:31]} 17. Kxe3 {[%clk 0:02:27]}  b5 {[%clk 0:02:29]} 18. axb5 {[%clk 0:02:18]}  cxb5 {[%clk 0:02:30]} 19. Na5 {[%clk 0:02:14]}  Nb6 {[%clk 0:02:25]} 20. Rhd1 {[%clk 0:02:01]}  Rhd8 {[%clk 0:02:24]} 21. Rd3 {[%clk 0:02:00]}  Rxd3+ {[%clk 0:02:23]} 22. cxd3 {[%clk 0:02:01]}  Kd6 {[%clk 0:01:56]} 23. Nb3 {[%clk 0:01:49]}  Na4 {[%clk 0:01:54]} 24. Nd2 {[%clk 0:01:39]}  Kc5 {[%clk 0:01:49]} 25. Rc1+ {[%clk 0:01:33]}  Kb4 {[%clk 0:01:47]} 26. Rc2 {[%clk 0:01:33]}  Rd8 {[%clk 0:01:37]} 27. g3 {[%clk 0:01:31]}  g5 {[%clk 0:01:35]} 28. Ke2 {[%clk 0:01:17]}  Nc5 {[%clk 0:01:35]} 29. Rc3 {[%clk 0:01:17]}  a5 {[%clk 0:01:32]} 30. Ke3 {[%clk 0:00:57]}  a4 {[%clk 0:01:31]} 31. Ke2 {[%clk 0:00:58]}  h6 {[%clk 0:01:30]} 32. Ke3 {[%clk 0:00:57]}  Rd7 {[%clk 0:01:26]} 33. Ke2 {[%clk 0:00:56]}  Rd8 {[%clk 0:01:20]} 34. Ke3 {[%clk 0:00:56]}  Rd7 {[%clk 0:01:20]} 35. Ke2 {[%clk 0:00:57]}  Rd8 {[%clk 0:01:20]} 1/2-1/2


[Site "https://www.chess.com"]

[Event "Titled Tuesday Blitz December 14 2021"]
[White "Vidit, Santosh Gujrathi"]
[Black "Gelman, Alexander"]
[WhiteFideId "5029465"]
[BlackFideId "4118316"]
[WhiteElo "2628"]
[BlackElo "2375"]
[Result "1-0"]
[Round "06"]
[TimeControl "180+1"]
[Date "2021.12.14"]
[WhiteClock "0:00:42"]
[BlackClock "0:00:03"]

1. Nf3 {[%clk 0:03:00]}  Nf6 {[%clk 0:02:59]} 2. g3 {[%clk 0:03:01]}  c5 {[%clk 0:02:59]} 3. Bg2 {[%clk 0:03:02]}  e6 {[%clk 0:03:00]} 4. O-O {[%clk 0:03:01]}  Be7 {[%clk 0:03:01]} 5. c4 {[%clk 0:03:01]}  O-O {[%clk 0:03:01]} 6. d4 {[%clk 0:03:01]}  cxd4 {[%clk 0:03:01]} 7. Nxd4 {[%clk 0:03:02]}  d6 {[%clk 0:03:02]} 8. Nc3 {[%clk 0:03:02]}  a6 {[%clk 0:03:02]} 9. b3 {[%clk 0:03:01]}  Nbd7 {[%clk 0:03:03]} 10. Bb2 {[%clk 0:03:01]}  Qc7 {[%clk 0:03:04]} 11. Rc1 {[%clk 0:03:02]}  Ne5 {[%clk 0:03:04]} 12. Qd2 {[%clk 0:03:00]}  Bd7 {[%clk 0:03:05]} 13. Rfd1 {[%clk 0:03:00]}  Rac8 {[%clk 0:03:05]} 14. h3 {[%clk 0:02:59]}  Qb8 {[%clk 0:03:03]} 15. a4 {[%clk 0:02:59]}  Rfd8 {[%clk 0:03:03]} 16. g4 {[%clk 0:02:56]}  h6 {[%clk 0:03:02]} 17. Ba3 {[%clk 0:02:49]}  Qc7 {[%clk 0:03:00]} 18. e3 {[%clk 0:02:41]}  Qb6 {[%clk 0:02:48]} 19. Rb1 {[%clk 0:02:39]}  Qc7 {[%clk 0:02:48]} 20. f4 {[%clk 0:02:35]}  Ng6 {[%clk 0:02:48]} 21. Qf2 {[%clk 0:02:33]}  Re8 {[%clk 0:02:32]} 22. Rbc1 {[%clk 0:02:27]}  Qb6 {[%clk 0:02:30]} 23. g5 {[%clk 0:02:16]}  hxg5 {[%clk 0:02:27]} 24. fxg5 {[%clk 0:02:17]}  Nh7 {[%clk 0:02:28]} 25. h4 {[%clk 0:02:16]}  Ne5 {[%clk 0:02:25]} 26. Qg3 {[%clk 0:02:12]}  Rf8 {[%clk 0:01:09]} 27. Ne4 {[%clk 0:02:09]}  f5 {[%clk 0:01:05]} 28. a5 {[%clk 0:01:08]}  Qc7 {[%clk 0:00:52]} 29. Nxd6 {[%clk 0:01:05]}  Bxd6 {[%clk 0:00:37]} 30. Nxe6 {[%clk 0:01:01]}  f4 {[%clk 0:00:07]} 31. Nxc7 {[%clk 0:00:53]}  fxg3 {[%clk 0:00:07]} 32. Bxd6 {[%clk 0:00:53]}  Nf3+ {[%clk 0:00:07]} 33. Kh1 {[%clk 0:00:51]}  Nxh4 {[%clk 0:00:06]} 34. Bxf8 {[%clk 0:00:49]}  Nxf8 {[%clk 0:00:07]} 35. Nd5 {[%clk 0:00:48]}  Bg4 {[%clk 0:00:05]} 36. Ne7+ {[%clk 0:00:47]}  Kf7 {[%clk 0:00:04]} 37. Nxc8 {[%clk 0:00:48]}  Bxc8 {[%clk 0:00:05]} 38. Rd4 {[%clk 0:00:47]}  Nf5 {[%clk 0:00:04]} 39. Rf1 {[%clk 0:00:45]}  Kg6 {[%clk 0:00:03]} 40. Be4 {[%clk 0:00:43]}  Kxg5 {[%clk 0:00:02]} 41. Bxf5 {[%clk 0:00:42]}  Bxf5 {[%clk 0:00:03]} 42. Rd5 {[%clk 0:00:42]}  g6 {[%clk 0:00:03]} 43. e4 {[%clk 0:00:42]} 1-0


[Site "https://www.chess.com"]

[Event "Titled Tuesday Blitz December 14 2021"]
[White "Weetik, Vjacheslav"]
[Black "Khayrullin, Denis"]
[WhiteFideId "4153472"]
[BlackFideId "4144694"]
[WhiteElo "2469"]
[BlackElo "2210"]
[Result "1-0"]
[Round "06"]
[TimeControl "180+1"]
[Date "2021.12.15"]
[WhiteClock "0:00:03"]
[BlackClock "0:00:01"]

1. d4 {[%clk 0:02:58]}  Nf6 {[%clk 0:02:57]} 2. Bf4 {[%clk 0:02:55]}  c5 {[%clk 0:02:56]} 3. e3 {[%clk 0:02:55]}  Qb6 {[%clk 0:02:54]} 4. Na3 {[%clk 0:02:55]}  d6 {[%clk 0:02:34]} 5. Nc4 {[%clk 0:02:49]}  Qc7 {[%clk 0:02:34]} 6. a4 {[%clk 0:02:46]}  g6 {[%clk 0:02:33]} 7. h3 {[%clk 0:02:43]}  Bg7 {[%clk 0:02:33]} 8. Nf3 {[%clk 0:02:43]}  O-O {[%clk 0:02:33]} 9. Be2 {[%clk 0:02:41]}  Be6 {[%clk 0:02:28]} 10. Ncd2 {[%clk 0:02:19]}  cxd4 {[%clk 0:02:14]} 11. exd4 {[%clk 0:02:17]}  Nd5 {[%clk 0:02:14]} 12. Bh2 {[%clk 0:02:13]}  Bh6 {[%clk 0:02:14]} 13. O-O {[%clk 0:02:03]}  Nf4 {[%clk 0:02:07]} 14. Bxf4 {[%clk 0:01:57]}  Bxf4 {[%clk 0:02:07]} 15. Re1 {[%clk 0:01:54]}  Nd7 {[%clk 0:01:57]} 16. c3 {[%clk 0:01:47]}  Nf6 {[%clk 0:01:56]} 17. Bf1 {[%clk 0:01:44]}  Rfe8 {[%clk 0:01:54]} 18. Rxe6 {[%clk 0:01:24]}  fxe6 {[%clk 0:01:53]} 19. Qb3 {[%clk 0:01:22]}  d5 {[%clk 0:01:42]} 20. Re1 {[%clk 0:01:18]}  Qd6 {[%clk 0:01:28]} 21. Qc2 {[%clk 0:00:58]}  Bxd2 {[%clk 0:01:15]} 22. Qxd2 {[%clk 0:00:54]}  a6 {[%clk 0:01:03]} 23. Qh6 {[%clk 0:00:50]}  Rf8 {[%clk 0:00:40]} 24. Ng5 {[%clk 0:00:50]}  Rf7 {[%clk 0:00:22]} 25. Bd3 {[%clk 0:00:37]}  Raf8 {[%clk 0:00:16]} 26. Rxe6 {[%clk 0:00:32]}  Qd7 {[%clk 0:00:16]} 27. Re2 {[%clk 0:00:31]}  Ne4 {[%clk 0:00:15]} 28. Bxe4 {[%clk 0:00:20]}  dxe4 {[%clk 0:00:15]} 29. Nxf7 {[%clk 0:00:19]}  Rxf7 {[%clk 0:00:15]} 30. Rxe4 {[%clk 0:00:20]}  Qxa4 {[%clk 0:00:15]} 31. Qe3 {[%clk 0:00:16]}  Qa1+ {[%clk 0:00:14]} 32. Kh2 {[%clk 0:00:15]}  Qxb2 {[%clk 0:00:14]} 33. Rxe7 {[%clk 0:00:14]}  Rxe7 {[%clk 0:00:15]} 34. Qxe7 {[%clk 0:00:14]}  Qxf2 {[%clk 0:00:16]} 35. Qe4 {[%clk 0:00:08]}  Qd2 {[%clk 0:00:15]} 36. Qe6+ {[%clk 0:00:06]}  Kg7 {[%clk 0:00:15]} 37. Qe7+ {[%clk 0:00:07]}  Kh6 {[%clk 0:00:14]} 38. Qh4+ {[%clk 0:00:07]}  Kg7 {[%clk 0:00:14]} 39. Qe7+ {[%clk 0:00:08]}  Kg8 {[%clk 0:00:13]} 40. Qxb7 {[%clk 0:00:06]}  Qf4+ {[%clk 0:00:11]} 41. Kg1 {[%clk 0:00:06]}  Qe3+ {[%clk 0:00:11]} 42. Kf1 {[%clk 0:00:07]}  Qxc3 {[%clk 0:00:09]} 43. d5 {[%clk 0:00:05]}  Qd3+ {[%clk 0:00:09]} 44. Kf2 {[%clk 0:00:05]}  Qd4+ {[%clk 0:00:09]} 45. Kf3 {[%clk 0:00:05]}  Qd3+ {[%clk 0:00:09]} 46. Kf4 {[%clk 0:00:05]}  Qd4+ {[%clk 0:00:09]} 47. Kf3 {[%clk 0:00:05]}  Qd3+ {[%clk 0:00:09]} 48. Kf2 {[%clk 0:00:05]}  Qd2+ {[%clk 0:00:09]} 49. Kg3 {[%clk 0:00:04]}  Qe3+ {[%clk 0:00:08]} 50. Kh2 {[%clk 0:00:04]}  Qf4+ {[%clk 0:00:09]} 51. Kg1 {[%clk 0:00:05]}  Qe3+ {[%clk 0:00:09]} 52. Kf1 {[%clk 0:00:05]}  Qc1+ {[%clk 0:00:08]} 53. Ke2 {[%clk 0:00:06]}  Qc2+ {[%clk 0:00:09]} 54. Ke3 {[%clk 0:00:06]}  Qc3+ {[%clk 0:00:08]} 55. Ke4 {[%clk 0:00:06]}  Qe1+ {[%clk 0:00:07]} 56. Kd4 {[%clk 0:00:06]}  Qd2+ {[%clk 0:00:07]} 57. Ke5 {[%clk 0:00:06]}  Qe3+ {[%clk 0:00:06]} 58. Kd6 {[%clk 0:00:06]}  Qa3+ {[%clk 0:00:06]} 59. Kd7 {[%clk 0:00:05]}  Qa4+ {[%clk 0:00:04]} 60. Qc6 {[%clk 0:00:05]}  Qf4 {[%clk 0:00:04]} 61. d6 {[%clk 0:00:05]}  Kf8 {[%clk 0:00:03]} 62. Kc8 {[%clk 0:00:04]}  Qf5+ {[%clk 0:00:02]} 63. d7 {[%clk 0:00:04]}  Ke7 {[%clk 0:00:01]} 64. Qc7 {[%clk 0:00:03]} 1-0


[Site "https://www.chess.com"]

[Event "Titled Tuesday Blitz December 14 2021"]
[White "Albornoz Cabrera, Carlos Daniel"]
[Black "Vypkhaniuk, Ihor"]
[WhiteFideId "3518736"]
[BlackFideId "14112256"]
[WhiteElo "2490"]
[BlackElo "2327"]
[Result "1-0"]
[Round "07"]
[TimeControl "180+1"]
[Date "2021.12.14"]
[WhiteClock "0:00:37"]
[BlackClock "0:01:09"]

1. e4 {[%clk 0:03:00]}  d6 {[%clk 0:02:56]} 2. d4 {[%clk 0:03:00]}  Nf6 {[%clk 0:02:56]} 3. Nc3 {[%clk 0:03:00]}  e5 {[%clk 0:02:57]} 4. dxe5 {[%clk 0:02:55]}  dxe5 {[%clk 0:02:58]} 5. Qxd8+ {[%clk 0:02:55]}  Kxd8 {[%clk 0:02:59]} 6. Bc4 {[%clk 0:02:56]}  Ke8 {[%clk 0:02:58]} 7. Nf3 {[%clk 0:02:49]}  Bd6 {[%clk 0:02:58]} 8. Bg5 {[%clk 0:02:47]}  Nbd7 {[%clk 0:02:57]} 9. O-O-O {[%clk 0:02:47]}  a6 {[%clk 0:02:57]} 10. h3 {[%clk 0:02:44]}  h6 {[%clk 0:02:57]} 11. Be3 {[%clk 0:02:41]}  Kf8 {[%clk 0:02:47]} 12. g4 {[%clk 0:02:33]}  g6 {[%clk 0:02:45]} 13. g5 {[%clk 0:02:29]}  Ng8 {[%clk 0:02:34]} 14. gxh6 {[%clk 0:02:21]}  Nxh6 {[%clk 0:02:35]} 15. Bxh6+ {[%clk 0:02:11]}  Rxh6 {[%clk 0:02:35]} 16. Ng5 {[%clk 0:02:12]}  Be7 {[%clk 0:02:20]} 17. h4 {[%clk 0:01:47]}  Rxh4 {[%clk 0:02:08]} 18. Nxf7 {[%clk 0:01:43]}  Rxh1 {[%clk 0:02:00]} 19. Rxh1 {[%clk 0:01:44]}  Kg7 {[%clk 0:01:58]} 20. Nd5 {[%clk 0:01:32]}  Bd6 {[%clk 0:01:55]} 21. Nxd6 {[%clk 0:01:29]}  cxd6 {[%clk 0:01:56]} 22. Nc7 {[%clk 0:01:28]}  Rb8 {[%clk 0:01:55]} 23. Ne8+ {[%clk 0:01:28]}  Kf8 {[%clk 0:01:53]} 24. Nxd6 {[%clk 0:01:27]}  Nb6 {[%clk 0:01:51]} 25. Bb3 {[%clk 0:01:14]}  Kg7 {[%clk 0:01:41]} 26. Ne8+ {[%clk 0:01:09]}  Kf8 {[%clk 0:01:39]} 27. Rh8+ {[%clk 0:01:07]}  Ke7 {[%clk 0:01:40]} 28. Nc7 {[%clk 0:01:07]}  Kd6 {[%clk 0:01:36]} 29. Nd5 {[%clk 0:01:03]}  Nd7 {[%clk 0:01:32]} 30. Rg8 {[%clk 0:01:02]}  b5 {[%clk 0:01:32]} 31. Rxg6+ {[%clk 0:01:00]}  Kc5 {[%clk 0:01:33]} 32. a3 {[%clk 0:00:53]}  Kd4 {[%clk 0:01:27]} 33. Ne7 {[%clk 0:00:44]}  Kxe4 {[%clk 0:01:20]} 34. Bd5+ {[%clk 0:00:40]}  Kf4 {[%clk 0:01:19]} 35. Rg8 {[%clk 0:00:38]}  Nb6 {[%clk 0:01:11]} 36. Rf8+ {[%clk 0:00:37]}  Kg5 {[%clk 0:01:09]} 37. Be6 {[%clk 0:00:37]} 1-0


[Site "https://www.chess.com"]

[Event "Titled Tuesday Blitz December 14 2021"]
[White "Artemiev, Vladislav"]
[Black "Agasarov, Benik"]
[WhiteFideId "24101605"]
[BlackFideId "13314823"]
[WhiteElo "2830"]
[BlackElo "2629"]
[Result "1-0"]
[Round "07"]
[TimeControl "180+1"]
[Date "2021.12.14"]
[WhiteClock "0:00:05"]
[BlackClock "0:00:19"]

1. Nf3 {[%clk 0:03:00]}  Nf6 {[%clk 0:02:59]} 2. g3 {[%clk 0:03:00]}  g6 {[%clk 0:02:59]} 3. b3 {[%clk 0:03:00]}  Bg7 {[%clk 0:02:59]} 4. Bb2 {[%clk 0:03:01]}  O-O {[%clk 0:02:59]} 5. Bg2 {[%clk 0:03:01]}  c5 {[%clk 0:02:58]} 6. c4 {[%clk 0:03:01]}  Nc6 {[%clk 0:02:58]} 7. O-O {[%clk 0:03:01]}  d5 {[%clk 0:02:56]} 8. cxd5 {[%clk 0:03:01]}  Nxd5 {[%clk 0:02:56]} 9. Bxg7 {[%clk 0:03:00]}  Kxg7 {[%clk 0:02:57]} 10. d4 {[%clk 0:02:57]}  cxd4 {[%clk 0:02:36]} 11. Nxd4 {[%clk 0:02:57]}  Nxd4 {[%clk 0:02:37]} 12. Qxd4+ {[%clk 0:02:58]}  Nf6 {[%clk 0:02:37]} 13. Qe5 {[%clk 0:02:57]}  Bg4 {[%clk 0:02:31]} 14. Nc3 {[%clk 0:02:38]}  Rc8 {[%clk 0:02:15]} 15. h3 {[%clk 0:01:35]}  Be6 {[%clk 0:02:09]} 16. Rfd1 {[%clk 0:01:32]}  Qc7 {[%clk 0:02:08]} 17. Qxc7 {[%clk 0:01:31]}  Rxc7 {[%clk 0:02:09]} 18. Nb5 {[%clk 0:01:31]}  Rc5 {[%clk 0:02:05]} 19. Nd4 {[%clk 0:01:16]}  Bd5 {[%clk 0:02:05]} 20. Bxd5 {[%clk 0:00:33]}  Rxd5 {[%clk 0:02:05]} 21. Nf3 {[%clk 0:00:31]}  Rfd8 {[%clk 0:02:04]} 22. Rxd5 {[%clk 0:00:31]}  Rxd5 {[%clk 0:02:05]} 23. Rc1 {[%clk 0:00:31]}  e6 {[%clk 0:02:02]} 24. Kf1 {[%clk 0:00:29]}  h6 {[%clk 0:01:55]} 25. e3 {[%clk 0:00:27]}  b6 {[%clk 0:01:54]} 26. Ke2 {[%clk 0:00:26]}  g5 {[%clk 0:01:44]} 27. Nd4 {[%clk 0:00:19]}  Rd7 {[%clk 0:01:40]} 28. g4 {[%clk 0:00:13]}  Nd5 {[%clk 0:01:37]} 29. Nf3 {[%clk 0:00:11]}  Rc7 {[%clk 0:01:33]} 30. Rxc7 {[%clk 0:00:10]}  Nxc7 {[%clk 0:01:34]} 31. Ne5 {[%clk 0:00:09]}  Kf6 {[%clk 0:01:32]} 32. Nc6 {[%clk 0:00:09]}  a6 {[%clk 0:01:30]} 33. Kd3 {[%clk 0:00:09]}  Kg7 {[%clk 0:00:59]} 34. a4 {[%clk 0:00:06]}  f6 {[%clk 0:00:59]} 35. Nb8 {[%clk 0:00:02]}  Kf7 {[%clk 0:00:57]} 36. Nc6 {[%clk 0:00:02]}  Ke8 {[%clk 0:00:55]} 37. f4 {[%clk 0:00:02]}  Kd7 {[%clk 0:00:55]} 38. Nd4 {[%clk 0:00:03]}  Kd6 {[%clk 0:00:54]} 39. f5 {[%clk 0:00:03]}  e5 {[%clk 0:00:53]} 40. Ne2 {[%clk 0:00:04]}  Nd5 {[%clk 0:00:52]} 41. Ng3 {[%clk 0:00:04]}  Nb4+ {[%clk 0:00:52]} 42. Kc4 {[%clk 0:00:05]}  Nc2 {[%clk 0:00:52]} 43. Ne4+ {[%clk 0:00:05]}  Ke7 {[%clk 0:00:52]} 44. Kd5 {[%clk 0:00:05]}  Nxe3+ {[%clk 0:00:52]} 45. Kc6 {[%clk 0:00:05]}  b5 {[%clk 0:00:48]} 46. axb5 {[%clk 0:00:03]}  axb5 {[%clk 0:00:49]} 47. Kxb5 {[%clk 0:00:04]}  Nd5 {[%clk 0:00:49]} 48. b4 {[%clk 0:00:02]}  Nf4 {[%clk 0:00:47]} 49. Ka6 {[%clk 0:00:03]}  Kd7 {[%clk 0:00:40]} 50. b5 {[%clk 0:00:03]}  Nd5 {[%clk 0:00:33]} 51. Kb7 {[%clk 0:00:03]}  Ke7 {[%clk 0:00:28]} 52. Kc6 {[%clk 0:00:03]}  Nb4+ {[%clk 0:00:27]} 53. Kc5 {[%clk 0:00:03]}  Nd3+ {[%clk 0:00:28]} 54. Kb6 {[%clk 0:00:02]}  Nf4 {[%clk 0:00:26]} 55. Ka7 {[%clk 0:00:02]}  Nd5 {[%clk 0:00:24]} 56. b6 {[%clk 0:00:03]}  Kd8 {[%clk 0:00:19]} 57. b7 {[%clk 0:00:03]}  Nb4 {[%clk 0:00:19]} 58. b8=Q+ {[%clk 0:00:04]}  Kd7 {[%clk 0:00:19]} 59. Qxb4 {[%clk 0:00:04]}  Kc6 {[%clk 0:00:19]} 60. Qc5+ {[%clk 0:00:04]}  Kd7 {[%clk 0:00:19]} 61. Qd6+ {[%clk 0:00:05]}  Kc8 {[%clk 0:00:18]} 62. Qe7 {[%clk 0:00:05]}  h5 {[%clk 0:00:19]} 63. Nd6# {[%clk 0:00:05]} 1-0


[Site "https://www.chess.com"]

[Event "Titled Tuesday Blitz December 14 2021"]
[White "Arutinian, David"]
[Black "Jobava, Baadur"]
[WhiteFideId "13601741"]
[BlackFideId "13601520"]
[WhiteElo "2525"]
[BlackElo "2689"]
[Result "1-0"]
[Round "07"]
[TimeControl "180+1"]
[Date "2021.12.14"]
[WhiteClock "0:00:30"]
[BlackClock "0:00:04"]

1. Nf3 {[%clk 0:02:59]}  d5 {[%clk 0:02:51]} 2. e3 {[%clk 0:02:59]}  c6 {[%clk 0:02:52]} 3. c4 {[%clk 0:02:59]}  Nf6 {[%clk 0:02:53]} 4. Nc3 {[%clk 0:02:59]}  Nbd7 {[%clk 0:02:53]} 5. d4 {[%clk 0:02:58]}  Nb6 {[%clk 0:02:53]} 6. cxd5 {[%clk 0:02:57]}  cxd5 {[%clk 0:02:54]} 7. Bd3 {[%clk 0:02:56]}  Bg4 {[%clk 0:02:54]} 8. O-O {[%clk 0:02:56]}  e6 {[%clk 0:02:54]} 9. h3 {[%clk 0:02:57]}  Bh5 {[%clk 0:02:54]} 10. a4 {[%clk 0:02:52]}  a6 {[%clk 0:02:52]} 11. a5 {[%clk 0:02:51]}  Nbd7 {[%clk 0:02:52]} 12. Bd2 {[%clk 0:02:51]}  Bd6 {[%clk 0:02:51]} 13. Na4 {[%clk 0:02:48]}  Qe7 {[%clk 0:02:45]} 14. Rb1 {[%clk 0:02:42]}  Ne4 {[%clk 0:02:43]} 15. Be2 {[%clk 0:02:32]}  Bxf3 {[%clk 0:02:29]} 16. Bxf3 {[%clk 0:02:30]}  Nxd2 {[%clk 0:02:29]} 17. Qxd2 {[%clk 0:02:30]}  Bb4 {[%clk 0:02:30]} 18. Qd3 {[%clk 0:02:28]}  Bxa5 {[%clk 0:02:30]} 19. e4 {[%clk 0:02:29]}  dxe4 {[%clk 0:02:28]} 20. Qxe4 {[%clk 0:02:26]}  Rb8 {[%clk 0:02:26]} 21. Nc5 {[%clk 0:02:23]}  Nf6 {[%clk 0:02:18]} 22. Qe2 {[%clk 0:02:20]}  O-O {[%clk 0:02:17]} 23. b4 {[%clk 0:02:19]}  Bb6 {[%clk 0:02:15]} 24. Rfd1 {[%clk 0:02:19]}  Rfd8 {[%clk 0:02:14]} 25. Qe5 {[%clk 0:02:18]}  Bc7 {[%clk 0:02:13]} 26. Qe2 {[%clk 0:02:18]}  Bd6 {[%clk 0:02:12]} 27. g3 {[%clk 0:02:18]}  g6 {[%clk 0:02:12]} 28. Kg2 {[%clk 0:02:18]}  Kg7 {[%clk 0:02:12]} 29. h4 {[%clk 0:02:18]}  h5 {[%clk 0:02:12]} 30. Rdc1 {[%clk 0:02:18]}  Nd5 {[%clk 0:01:58]} 31. b5 {[%clk 0:02:14]}  a5 {[%clk 0:01:44]} 32. b6 {[%clk 0:02:14]}  Qf6 {[%clk 0:01:41]} 33. Qc4 {[%clk 0:02:04]}  Bxg3 {[%clk 0:01:19]} 34. Kxg3 {[%clk 0:01:52]}  Qf4+ {[%clk 0:01:09]} 35. Kg2 {[%clk 0:01:52]}  Qxh4 {[%clk 0:01:09]} 36. Nd3 {[%clk 0:01:41]}  Ne7 {[%clk 0:01:00]} 37. Qc7 {[%clk 0:01:29]}  Nf5 {[%clk 0:00:55]} 38. Qe5+ {[%clk 0:01:29]}  Kg8 {[%clk 0:00:55]} 39. d5 {[%clk 0:01:25]}  exd5 {[%clk 0:00:53]} 40. Rc7 {[%clk 0:01:23]}  Re8 {[%clk 0:00:45]} 41. Qxd5 {[%clk 0:01:21]}  Qf6 {[%clk 0:00:45]} 42. Kg1 {[%clk 0:01:05]}  Rbd8 {[%clk 0:00:44]} 43. Qc4 {[%clk 0:01:03]}  Ne3 {[%clk 0:00:33]} 44. fxe3 {[%clk 0:00:53]}  Qxf3 {[%clk 0:00:33]} 45. Rf1 {[%clk 0:00:51]}  Qg3+ {[%clk 0:00:27]} 46. Kh1 {[%clk 0:00:50]}  Qh3+ {[%clk 0:00:27]} 47. Kg1 {[%clk 0:00:50]}  Qxe3+ {[%clk 0:00:13]} 48. Kh1 {[%clk 0:00:49]}  Qh3+ {[%clk 0:00:13]} 49. Kg1 {[%clk 0:00:49]}  Qg3+ {[%clk 0:00:13]} 50. Kh1 {[%clk 0:00:50]}  Re6 {[%clk 0:00:03]} 51. Rcxf7 {[%clk 0:00:30]}  Qh3+ {[%clk 0:00:03]} 52. Kg1 {[%clk 0:00:30]}  Qg3+ {[%clk 0:00:04]} 53. Kh1 {[%clk 0:00:30]} 1-0


[Site "https://www.chess.com"]